{"text_format":"1","workbook":"xlsx","n_sheets":7,"sheets":["Инструкция","Учет контрактов","Уведомление о продлении","Уведомление об увольнении","Правовое регулирование","Данные об организации","Список должностей"],"not_rendered":{"charts":0,"images":12,"macros":1,"external_links":0,"defined_names":6,"comments":1,"pivot_tables":0},"unopened":[],"bounds":{"document_bytes":16777216,"sheet_cells":100000,"rows_first":2000,"rows_last":500,"rows_between":2000,"halvings":0,"cell_chars":16384,"cell_head_chars":4096},"cells_cut":0,"cells_raw":0,"read":"whole","date_system":"1900"}

{"sheet":"Инструкция","index":0,"n_rows":77,"n_cols":7,"rows_kept":77,"cut":false,"hidden":false,"merged":[[5,0,5,19],[6,0,6,19]]}
["Сервис оповещения об окончании контракта edsh.by"]
[]
[]
["Видеоинструкция по пользованию: ",null,null,null,null,"https://www.youtube.com/watch?v=ENjl8uSOUK8"]
[]
["Данный сервис определит дату окончания контракта и крайний срок для оповещения работника о продолжении либо прекращении с ним трудовых отношений. "]
["Он заблаговременно напомнит вам о том, у каких работников в какие сроки истекают контракты, что позволит вам вовремя уведомить работников о продлении или непродлении контрактов с ними. Так вы убережете себя от юридических последствий неуведомления работника нанимателем о намерении продолжить (прекратить) с ним трудовые отношения в установленные сроки — превращения контракта в бессрочный трудовой договор."]
["Рекомендуемые требования к ПО: Microsoft Excel от версии 2013."]
["При первом открытии программы возможно появление следующего уведомления:"]
[]
[]
["Необходимо нажать кнопку",null,null,null,null,null," ,  чтобы продолжить работу с сервисом учета срока действия контрактов."]
["!","Перед началом работы необходимо убедиться, что включены макросы."]
["Сделать это можно следующим образом:"]
[]
[]
[]
[]
[]
["Либо при открытии может появиться следующее предупреждение:"]
[]
[]
["Необходимо нажать кнопку «Включить содержимое»."]
["!","Самостоятельное добавление (удаление) строк (столбцов) в таблицы может привести к сбоям в работе программы!"]
[]
["При открытии программы появляется следующее окно:"]
[]
["В данном окне заполните (измените) данные, которые автоматически будут подставлены"]
["в соответствующие ячейки листа «Шаблон уведомления»."]
[]
[]
[]
[]
[]
[]
[]
["В столбцы «Дата начала» и «Дата окончания» необходимо вносить данные только в формата «Дата». В случае ввода значений в других форматах программа будет работать некорректно."]
["При вводе значений соблюдайте правильную хронологию: дата начала должна быть раньше даты окончания."]
["Таблицу на листе «Учет контрактов» следует заполнять без пропуска строк."]
["В столбцах F-I  содержатся формулы. Не рекомендуется удалять информацию из данных ячеек! "]
[]
["Максимальное количество строк для заполнения – 1000."]
[]
["В программе предусмотрены следующие виды напоминаний:"]
["При входе в программу отображается список сотрудников, контракт которых заканчивается через 32 дня:"]
[]
[]
[]
[]
[]
[]
[]
[]
[]
["В столбце I листа «Учета контрактов» автоматически используются следующие цветовые схемы:"]
[]
[null,null,null,"33-35 дней до окончания контракта"]
[null,null,null,"31-32 дня до окончания контракта"]
[null,null,null,"контракт окончен"]
[]
["Со списком контрактов возможно осуществить следующие действия:"]
["·         отобразить контракты, заканчивающиеся через 33-35 дней (для своевременно информирования работника/руководителя);"]
["·         отобразить контракты, которые заканчиваются через 31-32 дня (для своевременной подготовки документации);"]
[]
["Для этого необходимо нажать соответствующую кнопку в верхней части листа «Учет контрактов»"]
[]
[]
["Данная программа предлагает заполнить следуующие виды документов:"]
["·         Уведомление о продлении контракта работнику;"]
["·         Уведомление об увольнении в связи с истечением срока действия контракта."]
["Для этого необходимо:"]
["           1.","установить курсор в строку, в которой указана информация о контракте работника;"]
["           2.","выбрать необходимое действие, нажав одну из кнопок:"]
[]
["Данные о работнике, контракте и об организации будут автоматически перенесены в соответствующие поля Уведомления."]
["По завершению работы не забудьте сохранить внесенные изменения на  листе «Учет контрактов». Обратите внимание, что при сохранении рабочей книги на листах"]
[" «Уведомление о продлении» и «Уведомление об увольнении» также будут сохранены данные о последнем сотруднике, которому готовились данные документы."]

{"sheet":"Учет контрактов","index":1,"n_rows":1005,"n_cols":11,"rows_kept":1005,"cut":false,"hidden":false,"merged":[[3,10,4,10],[3,8,4,8],[3,0,4,0],[3,1,4,1],[3,2,4,2],[3,3,3,4],[3,5,3,7]]}
[]
[]
[]
["№ п/п","Фамилия, имя, отчество","Должность","Дата",null,"Срок действия контракта",null,null,"До окончания контракта осталось менее, дней","№ контракта","Если действие по сотруднику произведено, укажите в соответствующей строке «Сделано»"]
[null,null,null,"начала контракта","окончания контракта","годы","месяцы","дни"]
[1,null,null,null,null,{"$f":"IF(AND(E6>=D6,ISBLANK(D6)=FALSE,ISBLANK(E6)=FALSE),DATEDIF(D6,E6+1,\"y\"),\"\")","v":""},{"$f":"IF(AND(E6>=D6,ISBLANK(D6)=FALSE,ISBLANK(E6)=FALSE),DATEDIF(D6,E6+1,\"ym\"),\"\")","v":""},{"$f":"IF(AND(E6>=D6,ISBLANK(D6)=FALSE,ISBLANK(E6)=FALSE),DATEDIF(D6,E6+1,\"md\"),\"\")","v":""},{"$f":"IF(AND(ISBLANK(E6)=FALSE,ISBLANK(D6)=FALSE),IF(E6>TODAY(),IF(E6<D6,\"Неверный диапазон\",DATEDIF(TODAY(),E6,\"d\")),\"Контракт окончен\"),\"\")","v":""},null,{"$f":"IF(AND(I6>=33,I6<=35),\"Не забудьте уведомить\",IF(AND(I6>=31,I6<=32),\"Уведомьте работника\",\"\"))","v":""}]
[2,null,null,null,null,{"$f":"IF(AND(E7>=D7,ISBLANK(D7)=FALSE,ISBLANK(E7)=FALSE),DATEDIF(D7,E7+1,\"y\"),\"\")","v":""},{"$f":"IF(AND(E7>=D7,ISBLANK(D7)=FALSE,ISBLANK(E7)=FALSE),DATEDIF(D7,E7+1,\"ym\"),\"\")","v":""},{"$f":"IF(AND(E7>=D7,ISBLANK(D7)=FALSE,ISBLANK(E7)=FALSE),DATEDIF(D7,E7+1,\"md\"),\"\")","v":""},{"$f":"IF(AND(ISBLANK(E7)=FALSE,ISBLANK(D7)=FALSE),IF(E7>TODAY(),IF(E7<D7,\"Неверный диапазон\",DATEDIF(TODAY(),E7,\"d\")),\"Контракт окончен\"),\"\")","v":""},null,{"$f":"IF(AND(I7>=33,I7<=35),\"Не забудьте уведомить\",IF(AND(I7>=31,I7<=32),\"Уведомьте работника\",\"\"))","v":""}]
[3,null,null,null,null,"","","","",null,""]
[4,null,null,null,null,"","","","",null,""]
[5,null,null,null,null,"","","","",null,""]
[6,null,null,null,null,"","","","",null,""]
[7,null,null,null,null,"","","","",null,""]
[8,null,null,null,null,"","","","",null,""]
[9,null,null,null,null,"","","","",null,""]
[10,null,null,null,null,"","","","",null,""]
[11,null,null,null,null,"","","","",null,""]
[12,null,null,null,null,"","","","",null,""]
[13,null,null,null,null,"","","","",null,""]
[14,null,null,null,null,"","","","",null,""]
[15,null,null,null,null,"","","","",null,""]
[16,null,null,null,null,"","","","",null,""]
[17,null,null,null,null,"","","","",null,""]
[18,null,null,null,null,"","","","",null,""]
[19,null,null,null,null,"","","","",null,""]
[20,null,null,null,null,"","","","",null,""]
[21,null,null,null,null,"","","","",null,""]
[22,null,null,null,null,"","","","",null,""]
[23,null,null,null,null,"","","","",null,""]
[24,null,null,null,null,"","","","",null,""]
[25,null,null,null,null,"","","","",null,""]
[26,null,null,null,null,"","","","",null,""]
[27,null,null,null,null,"","","","",null,""]
[28,null,null,null,null,"","","","",null,""]
[29,null,null,null,null,"","","","",null,""]
[30,null,null,null,null,"","","","",null,""]
[31,null,null,null,null,"","","","",null,""]
[32,null,null,null,null,"","","","",null,""]
[33,null,null,null,null,"","","","",null,""]
[34,null,null,null,null,"","","","",null,""]
[35,null,null,null,null,"","","","",null,""]
[36,null,null,null,null,"","","","",null,""]
[37,null,null,null,null,"","","","",null,""]
[38,null,null,null,null,"","","","",null,""]
[39,null,null,null,null,"","","","",null,""]
[40,null,null,null,null,"","","","",null,""]
[41,null,null,null,null,"","","","",null,""]
[42,null,null,null,null,"","","","",null,""]
[43,null,null,null,null,"","","","",null,""]
[44,null,null,null,null,"","","","",null,""]
[45,null,null,null,null,"","","","",null,""]
[46,null,null,null,null,"","","","",null,""]
[47,null,null,null,null,"","","","",null,""]
[48,null,null,null,null,"","","","",null,""]
[49,null,null,null,null,"","","","",null,""]
[50,null,null,null,null,"","","","",null,""]
[51,null,null,null,null,"","","","",null,""]
[52,null,null,null,null,"","","","",null,""]
[53,null,null,null,null,"","","","",null,""]
[54,null,null,null,null,"","","","",null,""]
[55,null,null,null,null,"","","","",null,""]
[56,null,null,null,null,"","","","",null,""]
[57,null,null,null,null,"","","","",null,""]
[58,null,null,null,null,"","","","",null,""]
[59,null,null,null,null,"","","","",null,""]
[60,null,null,null,null,"","","","",null,""]
[61,null,null,null,null,"","","","",null,""]
[62,null,null,null,null,"","","","",null,""]
[63,null,null,null,null,"","","","",null,""]
[64,null,null,null,null,"","","","",null,""]
[65,null,null,null,null,"","","","",null,""]
[66,null,null,null,null,{"$f":"IF(AND(E71>=D71,ISBLANK(D71)=FALSE,ISBLANK(E71)=FALSE),DATEDIF(D71,E71+1,\"y\"),\"\")","v":""},{"$f":"IF(AND(E71>=D71,ISBLANK(D71)=FALSE,ISBLANK(E71)=FALSE),DATEDIF(D71,E71+1,\"ym\"),\"\")","v":""},{"$f":"IF(AND(E71>=D71,ISBLANK(D71)=FALSE,ISBLANK(E71)=FALSE),DATEDIF(D71,E71+1,\"md\"),\"\")","v":""},{"$f":"IF(AND(ISBLANK(E71)=FALSE,ISBLANK(D71)=FALSE),IF(E71>TODAY(),IF(E71<D71,\"Неверный диапазон\",DATEDIF(TODAY(),E71,\"d\")),\"Контракт окончен\"),\"\")","v":""},null,{"$f":"IF(AND(I71>=33,I71<=35),\"Не забудьте уведомить\",IF(AND(I71>=31,I71<=32),\"Уведомьте работника\",\"\"))","v":""}]
[67,null,null,null,null,"","","","",null,""]
[68,null,null,null,null,"","","","",null,""]
[69,null,null,null,null,"","","","",null,""]
[70,null,null,null,null,"","","","",null,""]
[71,null,null,null,null,"","","","",null,""]
[72,null,null,null,null,"","","","",null,""]
[73,null,null,null,null,"","","","",null,""]
[74,null,null,null,null,"","","","",null,""]
[75,null,null,null,null,"","","","",null,""]
[76,null,null,null,null,"","","","",null,""]
[77,null,null,null,null,"","","","",null,""]
[78,null,null,null,null,"","","","",null,""]
[79,null,null,null,null,"","","","",null,""]
[80,null,null,null,null,"","","","",null,""]
[81,null,null,null,null,"","","","",null,""]
[82,null,null,null,null,"","","","",null,""]
[83,null,null,null,null,"","","","",null,""]
[84,null,null,null,null,"","","","",null,""]
[85,null,null,null,null,"","","","",null,""]
[86,null,null,null,null,"","","","",null,""]
[87,null,null,null,null,"","","","",null,""]
[88,null,null,null,null,"","","","",null,""]
[89,null,null,null,null,"","","","",null,""]
[90,null,null,null,null,"","","","",null,""]
[91,null,null,null,null,"","","","",null,""]
[92,null,null,null,null,"","","","",null,""]
[93,null,null,null,null,"","","","",null,""]
[94,null,null,null,null,"","","","",null,""]
[95,null,null,null,null,"","","","",null,""]
[96,null,null,null,null,"","","","",null,""]
[97,null,null,null,null,"","","","",null,""]
[98,null,null,null,null,"","","","",null,""]
[99,null,null,null,null,"","","","",null,""]
[100,null,null,null,null,"","","","",null,""]
[101,null,null,null,null,"","","","",null,""]
[102,null,null,null,null,"","","","",null,""]
[103,null,null,null,null,"","","","",null,""]
[104,null,null,null,null,"","","","",null,""]
[105,null,null,null,null,"","","","",null,""]
[106,null,null,null,null,"","","","",null,""]
[107,null,null,null,null,"","","","",null,""]
[108,null,null,null,null,"","","","",null,""]
[109,null,null,null,null,"","","","",null,""]
[110,null,null,null,null,"","","","",null,""]
[111,null,null,null,null,"","","","",null,""]
[112,null,null,null,null,"","","","",null,""]
[113,null,null,null,null,"","","","",null,""]
[114,null,null,null,null,"","","","",null,""]
[115,null,null,null,null,"","","","",null,""]
[116,null,null,null,null,"","","","",null,""]
[117,null,null,null,null,"","","","",null,""]
[118,null,null,null,null,"","","","",null,""]
[119,null,null,null,null,"","","","",null,""]
[120,null,null,null,null,"","","","",null,""]
[121,null,null,null,null,"","","","",null,""]
[122,null,null,null,null,"","","","",null,""]
[123,null,null,null,null,"","","","",null,""]
[124,null,null,null,null,"","","","",null,""]
[125,null,null,null,null,"","","","",null,""]
[126,null,null,null,null,"","","","",null,""]
[127,null,null,null,null,"","","","",null,""]
[128,null,null,null,null,"","","","",null,""]
[129,null,null,null,null,"","","","",null,""]
[130,null,null,null,null,{"$f":"IF(AND(E135>=D135,ISBLANK(D135)=FALSE,ISBLANK(E135)=FALSE),DATEDIF(D135,E135+1,\"y\"),\"\")","v":""},{"$f":"IF(AND(E135>=D135,ISBLANK(D135)=FALSE,ISBLANK(E135)=FALSE),DATEDIF(D135,E135+1,\"ym\"),\"\")","v":""},{"$f":"IF(AND(E135>=D135,ISBLANK(D135)=FALSE,ISBLANK(E135)=FALSE),DATEDIF(D135,E135+1,\"md\"),\"\")","v":""},{"$f":"IF(AND(ISBLANK(E135)=FALSE,ISBLANK(D135)=FALSE),IF(E135>TODAY(),IF(E135<D135,\"Неверный диапазон\",DATEDIF(TODAY(),E135,\"d\")),\"Контракт окончен\"),\"\")","v":""},null,{"$f":"IF(AND(I135>=33,I135<=35),\"Не забудьте уведомить\",IF(AND(I135>=31,I135<=32),\"Уведомьте работника\",\"\"))","v":""}]
[131,null,null,null,null,"","","","",null,""]
[132,null,null,null,null,"","","","",null,""]
[133,null,null,null,null,"","","","",null,""]
[134,null,null,null,null,"","","","",null,""]
[135,null,null,null,null,"","","","",null,""]
[136,null,null,null,null,"","","","",null,""]
[137,null,null,null,null,"","","","",null,""]
[138,null,null,null,null,"","","","",null,""]
[139,null,null,null,null,"","","","",null,""]
[140,null,null,null,null,"","","","",null,""]
[141,null,null,null,null,"","","","",null,""]
[142,null,null,null,null,"","","","",null,""]
[143,null,null,null,null,"","","","",null,""]
[144,null,null,null,null,"","","","",null,""]
[145,null,null,null,null,"","","","",null,""]
[146,null,null,null,null,"","","","",null,""]
[147,null,null,null,null,"","","","",null,""]
[148,null,null,null,null,"","","","",null,""]
[149,null,null,null,null,"","","","",null,""]
[150,null,null,null,null,"","","","",null,""]
[151,null,null,null,null,"","","","",null,""]
[152,null,null,null,null,"","","","",null,""]
[153,null,null,null,null,"","","","",null,""]
[154,null,null,null,null,"","","","",null,""]
[155,null,null,null,null,"","","","",null,""]
[156,null,null,null,null,"","","","",null,""]
[157,null,null,null,null,"","","","",null,""]
[158,null,null,null,null,"","","","",null,""]
[159,null,null,null,null,"","","","",null,""]
[160,null,null,null,null,"","","","",null,""]
[161,null,null,null,null,"","","","",null,""]
[162,null,null,null,null,"","","","",null,""]
[163,null,null,null,null,"","","","",null,""]
[164,null,null,null,null,"","","","",null,""]
[165,null,null,null,null,"","","","",null,""]
[166,null,null,null,null,"","","","",null,""]
[167,null,null,null,null,"","","","",null,""]
[168,null,null,null,null,"","","","",null,""]
[169,null,null,null,null,"","","","",null,""]
[170,null,null,null,null,"","","","",null,""]
[171,null,null,null,null,"","","","",null,""]
[172,null,null,null,null,"","","","",null,""]
[173,null,null,null,null,"","","","",null,""]
[174,null,null,null,null,"","","","",null,""]
[175,null,null,null,null,"","","","",null,""]
[176,null,null,null,null,"","","","",null,""]
[177,null,null,null,null,"","","","",null,""]
[178,null,null,null,null,"","","","",null,""]
[179,null,null,null,null,"","","","",null,""]
[180,null,null,null,null,"","","","",null,""]
[181,null,null,null,null,"","","","",null,""]
[182,null,null,null,null,"","","","",null,""]
[183,null,null,null,null,"","","","",null,""]
[184,null,null,null,null,"","","","",null,""]
[185,null,null,null,null,"","","","",null,""]
[186,null,null,null,null,"","","","",null,""]
[187,null,null,null,null,"","","","",null,""]
[188,null,null,null,null,"","","","",null,""]
[189,null,null,null,null,"","","","",null,""]
[190,null,null,null,null,"","","","",null,""]
[191,null,null,null,null,"","","","",null,""]
[192,null,null,null,null,"","","","",null,""]
[193,null,null,null,null,"","","","",null,""]
[194,null,null,null,null,{"$f":"IF(AND(E199>=D199,ISBLANK(D199)=FALSE,ISBLANK(E199)=FALSE),DATEDIF(D199,E199+1,\"y\"),\"\")","v":""},{"$f":"IF(AND(E199>=D199,ISBLANK(D199)=FALSE,ISBLANK(E199)=FALSE),DATEDIF(D199,E199+1,\"ym\"),\"\")","v":""},{"$f":"IF(AND(E199>=D199,ISBLANK(D199)=FALSE,ISBLANK(E199)=FALSE),DATEDIF(D199,E199+1,\"md\"),\"\")","v":""},{"$f":"IF(AND(ISBLANK(E199)=FALSE,ISBLANK(D199)=FALSE),IF(E199>TODAY(),IF(E199<D199,\"Неверный диапазон\",DATEDIF(TODAY(),E199,\"d\")),\"Контракт окончен\"),\"\")","v":""},null,{"$f":"IF(AND(I199>=33,I199<=35),\"Не забудьте уведомить\",IF(AND(I199>=31,I199<=32),\"Уведомьте работника\",\"\"))","v":""}]
[195,null,null,null,null,"","","","",null,""]
[196,null,null,null,null,"","","","",null,""]
[197,null,null,null,null,"","","","",null,""]
[198,null,null,null,null,"","","","",null,""]
[199,null,null,null,null,"","","","",null,""]
[200,null,null,null,null,"","","","",null,""]
[201,null,null,null,null,"","","","",null,""]
[202,null,null,null,null,"","","","",null,""]
[203,null,null,null,null,"","","","",null,""]
[204,null,null,null,null,"","","","",null,""]
[205,null,null,null,null,"","","","",null,""]
[206,null,null,null,null,"","","","",null,""]
[207,null,null,null,null,"","","","",null,""]
[208,null,null,null,null,"","","","",null,""]
[209,null,null,null,null,"","","","",null,""]
[210,null,null,null,null,"","","","",null,""]
[211,null,null,null,null,"","","","",null,""]
[212,null,null,null,null,"","","","",null,""]
[213,null,null,null,null,"","","","",null,""]
[214,null,null,null,null,"","","","",null,""]
[215,null,null,null,null,"","","","",null,""]
[216,null,null,null,null,"","","","",null,""]
[217,null,null,null,null,"","","","",null,""]
[218,null,null,null,null,"","","","",null,""]
[219,null,null,null,null,"","","","",null,""]
[220,null,null,null,null,"","","","",null,""]
[221,null,null,null,null,"","","","",null,""]
[222,null,null,null,null,"","","","",null,""]
[223,null,null,null,null,"","","","",null,""]
[224,null,null,null,null,"","","","",null,""]
[225,null,null,null,null,"","","","",null,""]
[226,null,null,null,null,"","","","",null,""]
[227,null,null,null,null,"","","","",null,""]
[228,null,null,null,null,"","","","",null,""]
[229,null,null,null,null,"","","","",null,""]
[230,null,null,null,null,"","","","",null,""]
[231,null,null,null,null,"","","","",null,""]
[232,null,null,null,null,"","","","",null,""]
[233,null,null,null,null,"","","","",null,""]
[234,null,null,null,null,"","","","",null,""]
[235,null,null,null,null,"","","","",null,""]
[236,null,null,null,null,"","","","",null,""]
[237,null,null,null,null,"","","","",null,""]
[238,null,null,null,null,"","","","",null,""]
[239,null,null,null,null,"","","","",null,""]
[240,null,null,null,null,"","","","",null,""]
[241,null,null,null,null,"","","","",null,""]
[242,null,null,null,null,"","","","",null,""]
[243,null,null,null,null,"","","","",null,""]
[244,null,null,null,null,"","","","",null,""]
[245,null,null,null,null,"","","","",null,""]
[246,null,null,null,null,"","","","",null,""]
[247,null,null,null,null,"","","","",null,""]
[248,null,null,null,null,"","","","",null,""]
[249,null,null,null,null,"","","","",null,""]
[250,null,null,null,null,"","","","",null,""]
[251,null,null,null,null,"","","","",null,""]
[252,null,null,null,null,"","","","",null,""]
[253,null,null,null,null,"","","","",null,""]
[254,null,null,null,null,"","","","",null,""]
[255,null,null,null,null,"","","","",null,""]
[256,null,null,null,null,"","","","",null,""]
[257,null,null,null,null,"","","","",null,""]
[258,null,null,null,null,{"$f":"IF(AND(E263>=D263,ISBLANK(D263)=FALSE,ISBLANK(E263)=FALSE),DATEDIF(D263,E263+1,\"y\"),\"\")","v":""},{"$f":"IF(AND(E263>=D263,ISBLANK(D263)=FALSE,ISBLANK(E263)=FALSE),DATEDIF(D263,E263+1,\"ym\"),\"\")","v":""},{"$f":"IF(AND(E263>=D263,ISBLANK(D263)=FALSE,ISBLANK(E263)=FALSE),DATEDIF(D263,E263+1,\"md\"),\"\")","v":""},{"$f":"IF(AND(ISBLANK(E263)=FALSE,ISBLANK(D263)=FALSE),IF(E263>TODAY(),IF(E263<D263,\"Неверный диапазон\",DATEDIF(TODAY(),E263,\"d\")),\"Контракт окончен\"),\"\")","v":""},null,{"$f":"IF(AND(I263>=33,I263<=35),\"Не забудьте уведомить\",IF(AND(I263>=31,I263<=32),\"Уведомьте работника\",\"\"))","v":""}]
[259,null,null,null,null,"","","","",null,""]
[260,null,null,null,null,"","","","",null,""]
[261,null,null,null,null,"","","","",null,""]
[262,null,null,null,null,"","","","",null,""]
[263,null,null,null,null,"","","","",null,""]
[264,null,null,null,null,"","","","",null,""]
[265,null,null,null,null,"","","","",null,""]
[266,null,null,null,null,"","","","",null,""]
[267,null,null,null,null,"","","","",null,""]
[268,null,null,null,null,"","","","",null,""]
[269,null,null,null,null,"","","","",null,""]
[270,null,null,null,null,"","","","",null,""]
[271,null,null,null,null,"","","","",null,""]
[272,null,null,null,null,"","","","",null,""]
[273,null,null,null,null,"","","","",null,""]
[274,null,null,null,null,"","","","",null,""]
[275,null,null,null,null,"","","","",null,""]
[276,null,null,null,null,"","","","",null,""]
[277,null,null,null,null,"","","","",null,""]
[278,null,null,null,null,"","","","",null,""]
[279,null,null,null,null,"","","","",null,""]
[280,null,null,null,null,"","","","",null,""]
[281,null,null,null,null,"","","","",null,""]
[282,null,null,null,null,"","","","",null,""]
[283,null,null,null,null,"","","","",null,""]
[284,null,null,null,null,"","","","",null,""]
[285,null,null,null,null,"","","","",null,""]
[286,null,null,null,null,"","","","",null,""]
[287,null,null,null,null,"","","","",null,""]
[288,null,null,null,null,"","","","",null,""]
[289,null,null,null,null,"","","","",null,""]
[290,null,null,null,null,"","","","",null,""]
[291,null,null,null,null,"","","","",null,""]
[292,null,null,null,null,"","","","",null,""]
[293,null,null,null,null,"","","","",null,""]
[294,null,null,null,null,"","","","",null,""]
[295,null,null,null,null,"","","","",null,""]
[296,null,null,null,null,"","","","",null,""]
[297,null,null,null,null,"","","","",null,""]
[298,null,null,null,null,"","","","",null,""]
[299,null,null,null,null,"","","","",null,""]
[300,null,null,null,null,"","","","",null,""]
[301,null,null,null,null,"","","","",null,""]
[302,null,null,null,null,"","","","",null,""]
[303,null,null,null,null,"","","","",null,""]
[304,null,null,null,null,"","","","",null,""]
[305,null,null,null,null,"","","","",null,""]
[306,null,null,null,null,"","","","",null,""]
[307,null,null,null,null,"","","","",null,""]
[308,null,null,null,null,"","","","",null,""]
[309,null,null,null,null,"","","","",null,""]
[310,null,null,null,null,"","","","",null,""]
[311,null,null,null,null,"","","","",null,""]
[312,null,null,null,null,"","","","",null,""]
[313,null,null,null,null,"","","","",null,""]
[314,null,null,null,null,"","","","",null,""]
[315,null,null,null,null,"","","","",null,""]
[316,null,null,null,null,"","","","",null,""]
[317,null,null,null,null,"","","","",null,""]
[318,null,null,null,null,"","","","",null,""]
[319,null,null,null,null,"","","","",null,""]
[320,null,null,null,null,"","","","",null,""]
[321,null,null,null,null,"","","","",null,""]
[322,null,null,null,null,{"$f":"IF(AND(E327>=D327,ISBLANK(D327)=FALSE,ISBLANK(E327)=FALSE),DATEDIF(D327,E327+1,\"y\"),\"\")","v":""},{"$f":"IF(AND(E327>=D327,ISBLANK(D327)=FALSE,ISBLANK(E327)=FALSE),DATEDIF(D327,E327+1,\"ym\"),\"\")","v":""},{"$f":"IF(AND(E327>=D327,ISBLANK(D327)=FALSE,ISBLANK(E327)=FALSE),DATEDIF(D327,E327+1,\"md\"),\"\")","v":""},{"$f":"IF(AND(ISBLANK(E327)=FALSE,ISBLANK(D327)=FALSE),IF(E327>TODAY(),IF(E327<D327,\"Неверный диапазон\",DATEDIF(TODAY(),E327,\"d\")),\"Контракт окончен\"),\"\")","v":""},null,{"$f":"IF(AND(I327>=33,I327<=35),\"Не забудьте уведомить\",IF(AND(I327>=31,I327<=32),\"Уведомьте работника\",\"\"))","v":""}]
[323,null,null,null,null,"","","","",null,""]
[324,null,null,null,null,"","","","",null,""]
[325,null,null,null,null,"","","","",null,""]
[326,null,null,null,null,"","","","",null,""]
[327,null,null,null,null,"","","","",null,""]
[328,null,null,null,null,"","","","",null,""]
[329,null,null,null,null,"","","","",null,""]
[330,null,null,null,null,"","","","",null,""]
[331,null,null,null,null,"","","","",null,""]
[332,null,null,null,null,"","","","",null,""]
[333,null,null,null,null,"","","","",null,""]
[334,null,null,null,null,"","","","",null,""]
[335,null,null,null,null,"","","","",null,""]
[336,null,null,null,null,"","","","",null,""]
[337,null,null,null,null,"","","","",null,""]
[338,null,null,null,null,"","","","",null,""]
[339,null,null,null,null,"","","","",null,""]
[340,null,null,null,null,"","","","",null,""]
[341,null,null,null,null,"","","","",null,""]
[342,null,null,null,null,"","","","",null,""]
[343,null,null,null,null,"","","","",null,""]
[344,null,null,null,null,"","","","",null,""]
[345,null,null,null,null,"","","","",null,""]
[346,null,null,null,null,"","","","",null,""]
[347,null,null,null,null,"","","","",null,""]
[348,null,null,null,null,"","","","",null,""]
[349,null,null,null,null,"","","","",null,""]
[350,null,null,null,null,"","","","",null,""]
[351,null,null,null,null,"","","","",null,""]
[352,null,null,null,null,"","","","",null,""]
[353,null,null,null,null,"","","","",null,""]
[354,null,null,null,null,"","","","",null,""]
[355,null,null,null,null,"","","","",null,""]
[356,null,null,null,null,"","","","",null,""]
[357,null,null,null,null,"","","","",null,""]
[358,null,null,null,null,"","","","",null,""]
[359,null,null,null,null,"","","","",null,""]
[360,null,null,null,null,"","","","",null,""]
[361,null,null,null,null,"","","","",null,""]
[362,null,null,null,null,"","","","",null,""]
[363,null,null,null,null,"","","","",null,""]
[364,null,null,null,null,"","","","",null,""]
[365,null,null,null,null,"","","","",null,""]
[366,null,null,null,null,"","","","",null,""]
[367,null,null,null,null,"","","","",null,""]
[368,null,null,null,null,"","","","",null,""]
[369,null,null,null,null,"","","","",null,""]
[370,null,null,null,null,"","","","",null,""]
[371,null,null,null,null,"","","","",null,""]
[372,null,null,null,null,"","","","",null,""]
[373,null,null,null,null,"","","","",null,""]
[374,null,null,null,null,"","","","",null,""]
[375,null,null,null,null,"","","","",null,""]
[376,null,null,null,null,"","","","",null,""]
[377,null,null,null,null,"","","","",null,""]
[378,null,null,null,null,"","","","",null,""]
[379,null,null,null,null,"","","","",null,""]
[380,null,null,null,null,"","","","",null,""]
[381,null,null,null,null,"","","","",null,""]
[382,null,null,null,null,"","","","",null,""]
[383,null,null,null,null,"","","","",null,""]
[384,null,null,null,null,"","","","",null,""]
[385,null,null,null,null,"","","","",null,""]
[386,null,null,null,null,{"$f":"IF(AND(E391>=D391,ISBLANK(D391)=FALSE,ISBLANK(E391)=FALSE),DATEDIF(D391,E391+1,\"y\"),\"\")","v":""},{"$f":"IF(AND(E391>=D391,ISBLANK(D391)=FALSE,ISBLANK(E391)=FALSE),DATEDIF(D391,E391+1,\"ym\"),\"\")","v":""},{"$f":"IF(AND(E391>=D391,ISBLANK(D391)=FALSE,ISBLANK(E391)=FALSE),DATEDIF(D391,E391+1,\"md\"),\"\")","v":""},{"$f":"IF(AND(ISBLANK(E391)=FALSE,ISBLANK(D391)=FALSE),IF(E391>TODAY(),IF(E391<D391,\"Неверный диапазон\",DATEDIF(TODAY(),E391,\"d\")),\"Контракт окончен\"),\"\")","v":""},null,{"$f":"IF(AND(I391>=33,I391<=35),\"Не забудьте уведомить\",IF(AND(I391>=31,I391<=32),\"Уведомьте работника\",\"\"))","v":""}]
[387,null,null,null,null,"","","","",null,""]
[388,null,null,null,null,"","","","",null,""]
[389,null,null,null,null,"","","","",null,""]
[390,null,null,null,null,"","","","",null,""]
[391,null,null,null,null,"","","","",null,""]
[392,null,null,null,null,"","","","",null,""]
[393,null,null,null,null,"","","","",null,""]
[394,null,null,null,null,"","","","",null,""]
[395,null,null,null,null,"","","","",null,""]
[396,null,null,null,null,"","","","",null,""]
[397,null,null,null,null,"","","","",null,""]
[398,null,null,null,null,"","","","",null,""]
[399,null,null,null,null,"","","","",null,""]
[400,null,null,null,null,"","","","",null,""]
[401,null,null,null,null,"","","","",null,""]
[402,null,null,null,null,"","","","",null,""]
[403,null,null,null,null,"","","","",null,""]
[404,null,null,null,null,"","","","",null,""]
[405,null,null,null,null,"","","","",null,""]
[406,null,null,null,null,"","","","",null,""]
[407,null,null,null,null,"","","","",null,""]
[408,null,null,null,null,"","","","",null,""]
[409,null,null,null,null,"","","","",null,""]
[410,null,null,null,null,"","","","",null,""]
[411,null,null,null,null,"","","","",null,""]
[412,null,null,null,null,"","","","",null,""]
[413,null,null,null,null,"","","","",null,""]
[414,null,null,null,null,"","","","",null,""]
[415,null,null,null,null,"","","","",null,""]
[416,null,null,null,null,"","","","",null,""]
[417,null,null,null,null,"","","","",null,""]
[418,null,null,null,null,"","","","",null,""]
[419,null,null,null,null,"","","","",null,""]
[420,null,null,null,null,"","","","",null,""]
[421,null,null,null,null,"","","","",null,""]
[422,null,null,null,null,"","","","",null,""]
[423,null,null,null,null,"","","","",null,""]
[424,null,null,null,null,"","","","",null,""]
[425,null,null,null,null,"","","","",null,""]
[426,null,null,null,null,"","","","",null,""]
[427,null,null,null,null,"","","","",null,""]
[428,null,null,null,null,"","","","",null,""]
[429,null,null,null,null,"","","","",null,""]
[430,null,null,null,null,"","","","",null,""]
[431,null,null,null,null,"","","","",null,""]
[432,null,null,null,null,"","","","",null,""]
[433,null,null,null,null,"","","","",null,""]
[434,null,null,null,null,"","","","",null,""]
[435,null,null,null,null,"","","","",null,""]
[436,null,null,null,null,"","","","",null,""]
[437,null,null,null,null,"","","","",null,""]
[438,null,null,null,null,"","","","",null,""]
[439,null,null,null,null,"","","","",null,""]
[440,null,null,null,null,"","","","",null,""]
[441,null,null,null,null,"","","","",null,""]
[442,null,null,null,null,"","","","",null,""]
[443,null,null,null,null,"","","","",null,""]
[444,null,null,null,null,"","","","",null,""]
[445,null,null,null,null,"","","","",null,""]
[446,null,null,null,null,"","","","",null,""]
[447,null,null,null,null,"","","","",null,""]
[448,null,null,null,null,"","","","",null,""]
[449,null,null,null,null,"","","","",null,""]
[450,null,null,null,null,{"$f":"IF(AND(E455>=D455,ISBLANK(D455)=FALSE,ISBLANK(E455)=FALSE),DATEDIF(D455,E455+1,\"y\"),\"\")","v":""},{"$f":"IF(AND(E455>=D455,ISBLANK(D455)=FALSE,ISBLANK(E455)=FALSE),DATEDIF(D455,E455+1,\"ym\"),\"\")","v":""},{"$f":"IF(AND(E455>=D455,ISBLANK(D455)=FALSE,ISBLANK(E455)=FALSE),DATEDIF(D455,E455+1,\"md\"),\"\")","v":""},{"$f":"IF(AND(ISBLANK(E455)=FALSE,ISBLANK(D455)=FALSE),IF(E455>TODAY(),IF(E455<D455,\"Неверный диапазон\",DATEDIF(TODAY(),E455,\"d\")),\"Контракт окончен\"),\"\")","v":""},null,{"$f":"IF(AND(I455>=33,I455<=35),\"Не забудьте уведомить\",IF(AND(I455>=31,I455<=32),\"Уведомьте работника\",\"\"))","v":""}]
[451,null,null,null,null,"","","","",null,""]
[452,null,null,null,null,"","","","",null,""]
[453,null,null,null,null,"","","","",null,""]
[454,null,null,null,null,"","","","",null,""]
[455,null,null,null,null,"","","","",null,""]
[456,null,null,null,null,"","","","",null,""]
[457,null,null,null,null,"","","","",null,""]
[458,null,null,null,null,"","","","",null,""]
[459,null,null,null,null,"","","","",null,""]
[460,null,null,null,null,"","","","",null,""]
[461,null,null,null,null,"","","","",null,""]
[462,null,null,null,null,"","","","",null,""]
[463,null,null,null,null,"","","","",null,""]
[464,null,null,null,null,"","","","",null,""]
[465,null,null,null,null,"","","","",null,""]
[466,null,null,null,null,"","","","",null,""]
[467,null,null,null,null,"","","","",null,""]
[468,null,null,null,null,"","","","",null,""]
[469,null,null,null,null,"","","","",null,""]
[470,null,null,null,null,"","","","",null,""]
[471,null,null,null,null,"","","","",null,""]
[472,null,null,null,null,"","","","",null,""]
[473,null,null,null,null,"","","","",null,""]
[474,null,null,null,null,"","","","",null,""]
[475,null,null,null,null,"","","","",null,""]
[476,null,null,null,null,"","","","",null,""]
[477,null,null,null,null,"","","","",null,""]
[478,null,null,null,null,"","","","",null,""]
[479,null,null,null,null,"","","","",null,""]
[480,null,null,null,null,"","","","",null,""]
[481,null,null,null,null,"","","","",null,""]
[482,null,null,null,null,"","","","",null,""]
[483,null,null,null,null,"","","","",null,""]
[484,null,null,null,null,"","","","",null,""]
[485,null,null,null,null,"","","","",null,""]
[486,null,null,null,null,"","","","",null,""]
[487,null,null,null,null,"","","","",null,""]
[488,null,null,null,null,"","","","",null,""]
[489,null,null,null,null,"","","","",null,""]
[490,null,null,null,null,"","","","",null,""]
[491,null,null,null,null,"","","","",null,""]
[492,null,null,null,null,"","","","",null,""]
[493,null,null,null,null,"","","","",null,""]
[494,null,null,null,null,"","","","",null,""]
[495,null,null,null,null,"","","","",null,""]
[496,null,null,null,null,"","","","",null,""]
[497,null,null,null,null,"","","","",null,""]
[498,null,null,null,null,"","","","",null,""]
[499,null,null,null,null,"","","","",null,""]
[500,null,null,null,null,"","","","",null,""]
[501,null,null,null,null,"","","","",null,""]
[502,null,null,null,null,"","","","",null,""]
[503,null,null,null,null,"","","","",null,""]
[504,null,null,null,null,"","","","",null,""]
[505,null,null,null,null,"","","","",null,""]
[506,null,null,null,null,"","","","",null,""]
[507,null,null,null,null,"","","","",null,""]
[508,null,null,null,null,"","","","",null,""]
[509,null,null,null,null,"","","","",null,""]
[510,null,null,null,null,"","","","",null,""]
[511,null,null,null,null,"","","","",null,""]
[512,null,null,null,null,"","","","",null,""]
[513,null,null,null,null,"","","","",null,""]
[514,null,null,null,null,{"$f":"IF(AND(E519>=D519,ISBLANK(D519)=FALSE,ISBLANK(E519)=FALSE),DATEDIF(D519,E519+1,\"y\"),\"\")","v":""},{"$f":"IF(AND(E519>=D519,ISBLANK(D519)=FALSE,ISBLANK(E519)=FALSE),DATEDIF(D519,E519+1,\"ym\"),\"\")","v":""},{"$f":"IF(AND(E519>=D519,ISBLANK(D519)=FALSE,ISBLANK(E519)=FALSE),DATEDIF(D519,E519+1,\"md\"),\"\")","v":""},{"$f":"IF(AND(ISBLANK(E519)=FALSE,ISBLANK(D519)=FALSE),IF(E519>TODAY(),IF(E519<D519,\"Неверный диапазон\",DATEDIF(TODAY(),E519,\"d\")),\"Контракт окончен\"),\"\")","v":""},null,{"$f":"IF(AND(I519>=33,I519<=35),\"Не забудьте уведомить\",IF(AND(I519>=31,I519<=32),\"Уведомьте работника\",\"\"))","v":""}]
[515,null,null,null,null,"","","","",null,""]
[516,null,null,null,null,"","","","",null,""]
[517,null,null,null,null,"","","","",null,""]
[518,null,null,null,null,"","","","",null,""]
[519,null,null,null,null,"","","","",null,""]
[520,null,null,null,null,"","","","",null,""]
[521,null,null,null,null,"","","","",null,""]
[522,null,null,null,null,"","","","",null,""]
[523,null,null,null,null,"","","","",null,""]
[524,null,null,null,null,"","","","",null,""]
[525,null,null,null,null,"","","","",null,""]
[526,null,null,null,null,"","","","",null,""]
[527,null,null,null,null,"","","","",null,""]
[528,null,null,null,null,"","","","",null,""]
[529,null,null,null,null,"","","","",null,""]
[530,null,null,null,null,"","","","",null,""]
[531,null,null,null,null,"","","","",null,""]
[532,null,null,null,null,"","","","",null,""]
[533,null,null,null,null,"","","","",null,""]
[534,null,null,null,null,"","","","",null,""]
[535,null,null,null,null,"","","","",null,""]
[536,null,null,null,null,"","","","",null,""]
[537,null,null,null,null,"","","","",null,""]
[538,null,null,null,null,"","","","",null,""]
[539,null,null,null,null,"","","","",null,""]
[540,null,null,null,null,"","","","",null,""]
[541,null,null,null,null,"","","","",null,""]
[542,null,null,null,null,"","","","",null,""]
[543,null,null,null,null,"","","","",null,""]
[544,null,null,null,null,"","","","",null,""]
[545,null,null,null,null,"","","","",null,""]
[546,null,null,null,null,"","","","",null,""]
[547,null,null,null,null,"","","","",null,""]
[548,null,null,null,null,"","","","",null,""]
[549,null,null,null,null,"","","","",null,""]
[550,null,null,null,null,"","","","",null,""]
[551,null,null,null,null,"","","","",null,""]
[552,null,null,null,null,"","","","",null,""]
[553,null,null,null,null,"","","","",null,""]
[554,null,null,null,null,"","","","",null,""]
[555,null,null,null,null,"","","","",null,""]
[556,null,null,null,null,"","","","",null,""]
[557,null,null,null,null,"","","","",null,""]
[558,null,null,null,null,"","","","",null,""]
[559,null,null,null,null,"","","","",null,""]
[560,null,null,null,null,"","","","",null,""]
[561,null,null,null,null,"","","","",null,""]
[562,null,null,null,null,"","","","",null,""]
[563,null,null,null,null,"","","","",null,""]
[564,null,null,null,null,"","","","",null,""]
[565,null,null,null,null,"","","","",null,""]
[566,null,null,null,null,"","","","",null,""]
[567,null,null,null,null,"","","","",null,""]
[568,null,null,null,null,"","","","",null,""]
[569,null,null,null,null,"","","","",null,""]
[570,null,null,null,null,"","","","",null,""]
[571,null,null,null,null,"","","","",null,""]
[572,null,null,null,null,"","","","",null,""]
[573,null,null,null,null,"","","","",null,""]
[574,null,null,null,null,"","","","",null,""]
[575,null,null,null,null,"","","","",null,""]
[576,null,null,null,null,"","","","",null,""]
[577,null,null,null,null,"","","","",null,""]
[578,null,null,null,null,{"$f":"IF(AND(E583>=D583,ISBLANK(D583)=FALSE,ISBLANK(E583)=FALSE),DATEDIF(D583,E583+1,\"y\"),\"\")","v":""},{"$f":"IF(AND(E583>=D583,ISBLANK(D583)=FALSE,ISBLANK(E583)=FALSE),DATEDIF(D583,E583+1,\"ym\"),\"\")","v":""},{"$f":"IF(AND(E583>=D583,ISBLANK(D583)=FALSE,ISBLANK(E583)=FALSE),DATEDIF(D583,E583+1,\"md\"),\"\")","v":""},{"$f":"IF(AND(ISBLANK(E583)=FALSE,ISBLANK(D583)=FALSE),IF(E583>TODAY(),IF(E583<D583,\"Неверный диапазон\",DATEDIF(TODAY(),E583,\"d\")),\"Контракт окончен\"),\"\")","v":""},null,{"$f":"IF(AND(I583>=33,I583<=35),\"Не забудьте уведомить\",IF(AND(I583>=31,I583<=32),\"Уведомьте работника\",\"\"))","v":""}]
[579,null,null,null,null,"","","","",null,""]
[580,null,null,null,null,"","","","",null,""]
[581,null,null,null,null,"","","","",null,""]
[582,null,null,null,null,"","","","",null,""]
[583,null,null,null,null,"","","","",null,""]
[584,null,null,null,null,"","","","",null,""]
[585,null,null,null,null,"","","","",null,""]
[586,null,null,null,null,"","","","",null,""]
[587,null,null,null,null,"","","","",null,""]
[588,null,null,null,null,"","","","",null,""]
[589,null,null,null,null,"","","","",null,""]
[590,null,null,null,null,"","","","",null,""]
[591,null,null,null,null,"","","","",null,""]
[592,null,null,null,null,"","","","",null,""]
[593,null,null,null,null,"","","","",null,""]
[594,null,null,null,null,"","","","",null,""]
[595,null,null,null,null,"","","","",null,""]
[596,null,null,null,null,"","","","",null,""]
[597,null,null,null,null,"","","","",null,""]
[598,null,null,null,null,"","","","",null,""]
[599,null,null,null,null,"","","","",null,""]
[600,null,null,null,null,"","","","",null,""]
[601,null,null,null,null,"","","","",null,""]
[602,null,null,null,null,"","","","",null,""]
[603,null,null,null,null,"","","","",null,""]
[604,null,null,null,null,"","","","",null,""]
[605,null,null,null,null,"","","","",null,""]
[606,null,null,null,null,"","","","",null,""]
[607,null,null,null,null,"","","","",null,""]
[608,null,null,null,null,"","","","",null,""]
[609,null,null,null,null,"","","","",null,""]
[610,null,null,null,null,"","","","",null,""]
[611,null,null,null,null,"","","","",null,""]
[612,null,null,null,null,"","","","",null,""]
[613,null,null,null,null,"","","","",null,""]
[614,null,null,null,null,"","","","",null,""]
[615,null,null,null,null,"","","","",null,""]
[616,null,null,null,null,"","","","",null,""]
[617,null,null,null,null,"","","","",null,""]
[618,null,null,null,null,"","","","",null,""]
[619,null,null,null,null,"","","","",null,""]
[620,null,null,null,null,"","","","",null,""]
[621,null,null,null,null,"","","","",null,""]
[622,null,null,null,null,"","","","",null,""]
[623,null,null,null,null,"","","","",null,""]
[624,null,null,null,null,"","","","",null,""]
[625,null,null,null,null,"","","","",null,""]
[626,null,null,null,null,"","","","",null,""]
[627,null,null,null,null,"","","","",null,""]
[628,null,null,null,null,"","","","",null,""]
[629,null,null,null,null,"","","","",null,""]
[630,null,null,null,null,"","","","",null,""]
[631,null,null,null,null,"","","","",null,""]
[632,null,null,null,null,"","","","",null,""]
[633,null,null,null,null,"","","","",null,""]
[634,null,null,null,null,"","","","",null,""]
[635,null,null,null,null,"","","","",null,""]
[636,null,null,null,null,"","","","",null,""]
[637,null,null,null,null,"","","","",null,""]
[638,null,null,null,null,"","","","",null,""]
[639,null,null,null,null,"","","","",null,""]
[640,null,null,null,null,"","","","",null,""]
[641,null,null,null,null,"","","","",null,""]
[642,null,null,null,null,{"$f":"IF(AND(E647>=D647,ISBLANK(D647)=FALSE,ISBLANK(E647)=FALSE),DATEDIF(D647,E647+1,\"y\"),\"\")","v":""},{"$f":"IF(AND(E647>=D647,ISBLANK(D647)=FALSE,ISBLANK(E647)=FALSE),DATEDIF(D647,E647+1,\"ym\"),\"\")","v":""},{"$f":"IF(AND(E647>=D647,ISBLANK(D647)=FALSE,ISBLANK(E647)=FALSE),DATEDIF(D647,E647+1,\"md\"),\"\")","v":""},{"$f":"IF(AND(ISBLANK(E647)=FALSE,ISBLANK(D647)=FALSE),IF(E647>TODAY(),IF(E647<D647,\"Неверный диапазон\",DATEDIF(TODAY(),E647,\"d\")),\"Контракт окончен\"),\"\")","v":""},null,{"$f":"IF(AND(I647>=33,I647<=35),\"Не забудьте уведомить\",IF(AND(I647>=31,I647<=32),\"Уведомьте работника\",\"\"))","v":""}]
[643,null,null,null,null,"","","","",null,""]
[644,null,null,null,null,"","","","",null,""]
[645,null,null,null,null,"","","","",null,""]
[646,null,null,null,null,"","","","",null,""]
[647,null,null,null,null,"","","","",null,""]
[648,null,null,null,null,"","","","",null,""]
[649,null,null,null,null,"","","","",null,""]
[650,null,null,null,null,"","","","",null,""]
[651,null,null,null,null,"","","","",null,""]
[652,null,null,null,null,"","","","",null,""]
[653,null,null,null,null,"","","","",null,""]
[654,null,null,null,null,"","","","",null,""]
[655,null,null,null,null,"","","","",null,""]
[656,null,null,null,null,"","","","",null,""]
[657,null,null,null,null,"","","","",null,""]
[658,null,null,null,null,"","","","",null,""]
[659,null,null,null,null,"","","","",null,""]
[660,null,null,null,null,"","","","",null,""]
[661,null,null,null,null,"","","","",null,""]
[662,null,null,null,null,"","","","",null,""]
[663,null,null,null,null,"","","","",null,""]
[664,null,null,null,null,"","","","",null,""]
[665,null,null,null,null,"","","","",null,""]
[666,null,null,null,null,"","","","",null,""]
[667,null,null,null,null,"","","","",null,""]
[668,null,null,null,null,"","","","",null,""]
[669,null,null,null,null,"","","","",null,""]
[670,null,null,null,null,"","","","",null,""]
[671,null,null,null,null,"","","","",null,""]
[672,null,null,null,null,"","","","",null,""]
[673,null,null,null,null,"","","","",null,""]
[674,null,null,null,null,"","","","",null,""]
[675,null,null,null,null,"","","","",null,""]
[676,null,null,null,null,"","","","",null,""]
[677,null,null,null,null,"","","","",null,""]
[678,null,null,null,null,"","","","",null,""]
[679,null,null,null,null,"","","","",null,""]
[680,null,null,null,null,"","","","",null,""]
[681,null,null,null,null,"","","","",null,""]
[682,null,null,null,null,"","","","",null,""]
[683,null,null,null,null,"","","","",null,""]
[684,null,null,null,null,"","","","",null,""]
[685,null,null,null,null,"","","","",null,""]
[686,null,null,null,null,"","","","",null,""]
[687,null,null,null,null,"","","","",null,""]
[688,null,null,null,null,"","","","",null,""]
[689,null,null,null,null,"","","","",null,""]
[690,null,null,null,null,"","","","",null,""]
[691,null,null,null,null,"","","","",null,""]
[692,null,null,null,null,"","","","",null,""]
[693,null,null,null,null,"","","","",null,""]
[694,null,null,null,null,"","","","",null,""]
[695,null,null,null,null,"","","","",null,""]
[696,null,null,null,null,"","","","",null,""]
[697,null,null,null,null,"","","","",null,""]
[698,null,null,null,null,"","","","",null,""]
[699,null,null,null,null,"","","","",null,""]
[700,null,null,null,null,"","","","",null,""]
[701,null,null,null,null,"","","","",null,""]
[702,null,null,null,null,"","","","",null,""]
[703,null,null,null,null,"","","","",null,""]
[704,null,null,null,null,"","","","",null,""]
[705,null,null,null,null,"","","","",null,""]
[706,null,null,null,null,{"$f":"IF(AND(E711>=D711,ISBLANK(D711)=FALSE,ISBLANK(E711)=FALSE),DATEDIF(D711,E711+1,\"y\"),\"\")","v":""},{"$f":"IF(AND(E711>=D711,ISBLANK(D711)=FALSE,ISBLANK(E711)=FALSE),DATEDIF(D711,E711+1,\"ym\"),\"\")","v":""},{"$f":"IF(AND(E711>=D711,ISBLANK(D711)=FALSE,ISBLANK(E711)=FALSE),DATEDIF(D711,E711+1,\"md\"),\"\")","v":""},{"$f":"IF(AND(ISBLANK(E711)=FALSE,ISBLANK(D711)=FALSE),IF(E711>TODAY(),IF(E711<D711,\"Неверный диапазон\",DATEDIF(TODAY(),E711,\"d\")),\"Контракт окончен\"),\"\")","v":""},null,{"$f":"IF(AND(I711>=33,I711<=35),\"Не забудьте уведомить\",IF(AND(I711>=31,I711<=32),\"Уведомьте работника\",\"\"))","v":""}]
[707,null,null,null,null,"","","","",null,""]
[708,null,null,null,null,"","","","",null,""]
[709,null,null,null,null,"","","","",null,""]
[710,null,null,null,null,"","","","",null,""]
[711,null,null,null,null,"","","","",null,""]
[712,null,null,null,null,"","","","",null,""]
[713,null,null,null,null,"","","","",null,""]
[714,null,null,null,null,"","","","",null,""]
[715,null,null,null,null,"","","","",null,""]
[716,null,null,null,null,"","","","",null,""]
[717,null,null,null,null,"","","","",null,""]
[718,null,null,null,null,"","","","",null,""]
[719,null,null,null,null,"","","","",null,""]
[720,null,null,null,null,"","","","",null,""]
[721,null,null,null,null,"","","","",null,""]
[722,null,null,null,null,"","","","",null,""]
[723,null,null,null,null,"","","","",null,""]
[724,null,null,null,null,"","","","",null,""]
[725,null,null,null,null,"","","","",null,""]
[726,null,null,null,null,"","","","",null,""]
[727,null,null,null,null,"","","","",null,""]
[728,null,null,null,null,"","","","",null,""]
[729,null,null,null,null,"","","","",null,""]
[730,null,null,null,null,"","","","",null,""]
[731,null,null,null,null,"","","","",null,""]
[732,null,null,null,null,"","","","",null,""]
[733,null,null,null,null,"","","","",null,""]
[734,null,null,null,null,"","","","",null,""]
[735,null,null,null,null,"","","","",null,""]
[736,null,null,null,null,"","","","",null,""]
[737,null,null,null,null,"","","","",null,""]
[738,null,null,null,null,"","","","",null,""]
[739,null,null,null,null,"","","","",null,""]
[740,null,null,null,null,"","","","",null,""]
[741,null,null,null,null,"","","","",null,""]
[742,null,null,null,null,"","","","",null,""]
[743,null,null,null,null,"","","","",null,""]
[744,null,null,null,null,"","","","",null,""]
[745,null,null,null,null,"","","","",null,""]
[746,null,null,null,null,"","","","",null,""]
[747,null,null,null,null,"","","","",null,""]
[748,null,null,null,null,"","","","",null,""]
[749,null,null,null,null,"","","","",null,""]
[750,null,null,null,null,"","","","",null,""]
[751,null,null,null,null,"","","","",null,""]
[752,null,null,null,null,"","","","",null,""]
[753,null,null,null,null,"","","","",null,""]
[754,null,null,null,null,"","","","",null,""]
[755,null,null,null,null,"","","","",null,""]
[756,null,null,null,null,"","","","",null,""]
[757,null,null,null,null,"","","","",null,""]
[758,null,null,null,null,"","","","",null,""]
[759,null,null,null,null,"","","","",null,""]
[760,null,null,null,null,"","","","",null,""]
[761,null,null,null,null,"","","","",null,""]
[762,null,null,null,null,"","","","",null,""]
[763,null,null,null,null,"","","","",null,""]
[764,null,null,null,null,"","","","",null,""]
[765,null,null,null,null,"","","","",null,""]
[766,null,null,null,null,"","","","",null,""]
[767,null,null,null,null,"","","","",null,""]
[768,null,null,null,null,"","","","",null,""]
[769,null,null,null,null,"","","","",null,""]
[770,null,null,null,null,{"$f":"IF(AND(E775>=D775,ISBLANK(D775)=FALSE,ISBLANK(E775)=FALSE),DATEDIF(D775,E775+1,\"y\"),\"\")","v":""},{"$f":"IF(AND(E775>=D775,ISBLANK(D775)=FALSE,ISBLANK(E775)=FALSE),DATEDIF(D775,E775+1,\"ym\"),\"\")","v":""},{"$f":"IF(AND(E775>=D775,ISBLANK(D775)=FALSE,ISBLANK(E775)=FALSE),DATEDIF(D775,E775+1,\"md\"),\"\")","v":""},{"$f":"IF(AND(ISBLANK(E775)=FALSE,ISBLANK(D775)=FALSE),IF(E775>TODAY(),IF(E775<D775,\"Неверный диапазон\",DATEDIF(TODAY(),E775,\"d\")),\"Контракт окончен\"),\"\")","v":""},null,{"$f":"IF(AND(I775>=33,I775<=35),\"Не забудьте уведомить\",IF(AND(I775>=31,I775<=32),\"Уведомьте работника\",\"\"))","v":""}]
[771,null,null,null,null,"","","","",null,""]
[772,null,null,null,null,"","","","",null,""]
[773,null,null,null,null,"","","","",null,""]
[774,null,null,null,null,"","","","",null,""]
[775,null,null,null,null,"","","","",null,""]
[776,null,null,null,null,"","","","",null,""]
[777,null,null,null,null,"","","","",null,""]
[778,null,null,null,null,"","","","",null,""]
[779,null,null,null,null,"","","","",null,""]
[780,null,null,null,null,"","","","",null,""]
[781,null,null,null,null,"","","","",null,""]
[782,null,null,null,null,"","","","",null,""]
[783,null,null,null,null,"","","","",null,""]
[784,null,null,null,null,"","","","",null,""]
[785,null,null,null,null,"","","","",null,""]
[786,null,null,null,null,"","","","",null,""]
[787,null,null,null,null,"","","","",null,""]
[788,null,null,null,null,"","","","",null,""]
[789,null,null,null,null,"","","","",null,""]
[790,null,null,null,null,"","","","",null,""]
[791,null,null,null,null,"","","","",null,""]
[792,null,null,null,null,"","","","",null,""]
[793,null,null,null,null,"","","","",null,""]
[794,null,null,null,null,"","","","",null,""]
[795,null,null,null,null,"","","","",null,""]
[796,null,null,null,null,"","","","",null,""]
[797,null,null,null,null,"","","","",null,""]
[798,null,null,null,null,"","","","",null,""]
[799,null,null,null,null,"","","","",null,""]
[800,null,null,null,null,"","","","",null,""]
[801,null,null,null,null,"","","","",null,""]
[802,null,null,null,null,"","","","",null,""]
[803,null,null,null,null,"","","","",null,""]
[804,null,null,null,null,"","","","",null,""]
[805,null,null,null,null,"","","","",null,""]
[806,null,null,null,null,"","","","",null,""]
[807,null,null,null,null,"","","","",null,""]
[808,null,null,null,null,"","","","",null,""]
[809,null,null,null,null,"","","","",null,""]
[810,null,null,null,null,"","","","",null,""]
[811,null,null,null,null,"","","","",null,""]
[812,null,null,null,null,"","","","",null,""]
[813,null,null,null,null,"","","","",null,""]
[814,null,null,null,null,"","","","",null,""]
[815,null,null,null,null,"","","","",null,""]
[816,null,null,null,null,"","","","",null,""]
[817,null,null,null,null,"","","","",null,""]
[818,null,null,null,null,"","","","",null,""]
[819,null,null,null,null,"","","","",null,""]
[820,null,null,null,null,"","","","",null,""]
[821,null,null,null,null,"","","","",null,""]
[822,null,null,null,null,"","","","",null,""]
[823,null,null,null,null,"","","","",null,""]
[824,null,null,null,null,"","","","",null,""]
[825,null,null,null,null,"","","","",null,""]
[826,null,null,null,null,"","","","",null,""]
[827,null,null,null,null,"","","","",null,""]
[828,null,null,null,null,"","","","",null,""]
[829,null,null,null,null,"","","","",null,""]
[830,null,null,null,null,"","","","",null,""]
[831,null,null,null,null,"","","","",null,""]
[832,null,null,null,null,"","","","",null,""]
[833,null,null,null,null,"","","","",null,""]
[834,null,null,null,null,{"$f":"IF(AND(E839>=D839,ISBLANK(D839)=FALSE,ISBLANK(E839)=FALSE),DATEDIF(D839,E839+1,\"y\"),\"\")","v":""},{"$f":"IF(AND(E839>=D839,ISBLANK(D839)=FALSE,ISBLANK(E839)=FALSE),DATEDIF(D839,E839+1,\"ym\"),\"\")","v":""},{"$f":"IF(AND(E839>=D839,ISBLANK(D839)=FALSE,ISBLANK(E839)=FALSE),DATEDIF(D839,E839+1,\"md\"),\"\")","v":""},{"$f":"IF(AND(ISBLANK(E839)=FALSE,ISBLANK(D839)=FALSE),IF(E839>TODAY(),IF(E839<D839,\"Неверный диапазон\",DATEDIF(TODAY(),E839,\"d\")),\"Контракт окончен\"),\"\")","v":""},null,{"$f":"IF(AND(I839>=33,I839<=35),\"Не забудьте уведомить\",IF(AND(I839>=31,I839<=32),\"Уведомьте работника\",\"\"))","v":""}]
[835,null,null,null,null,"","","","",null,""]
[836,null,null,null,null,"","","","",null,""]
[837,null,null,null,null,"","","","",null,""]
[838,null,null,null,null,"","","","",null,""]
[839,null,null,null,null,"","","","",null,""]
[840,null,null,null,null,"","","","",null,""]
[841,null,null,null,null,"","","","",null,""]
[842,null,null,null,null,"","","","",null,""]
[843,null,null,null,null,"","","","",null,""]
[844,null,null,null,null,"","","","",null,""]
[845,null,null,null,null,"","","","",null,""]
[846,null,null,null,null,"","","","",null,""]
[847,null,null,null,null,"","","","",null,""]
[848,null,null,null,null,"","","","",null,""]
[849,null,null,null,null,"","","","",null,""]
[850,null,null,null,null,"","","","",null,""]
[851,null,null,null,null,"","","","",null,""]
[852,null,null,null,null,"","","","",null,""]
[853,null,null,null,null,"","","","",null,""]
[854,null,null,null,null,"","","","",null,""]
[855,null,null,null,null,"","","","",null,""]
[856,null,null,null,null,"","","","",null,""]
[857,null,null,null,null,"","","","",null,""]
[858,null,null,null,null,"","","","",null,""]
[859,null,null,null,null,"","","","",null,""]
[860,null,null,null,null,"","","","",null,""]
[861,null,null,null,null,"","","","",null,""]
[862,null,null,null,null,"","","","",null,""]
[863,null,null,null,null,"","","","",null,""]
[864,null,null,null,null,"","","","",null,""]
[865,null,null,null,null,"","","","",null,""]
[866,null,null,null,null,"","","","",null,""]
[867,null,null,null,null,"","","","",null,""]
[868,null,null,null,null,"","","","",null,""]
[869,null,null,null,null,"","","","",null,""]
[870,null,null,null,null,"","","","",null,""]
[871,null,null,null,null,"","","","",null,""]
[872,null,null,null,null,"","","","",null,""]
[873,null,null,null,null,"","","","",null,""]
[874,null,null,null,null,"","","","",null,""]
[875,null,null,null,null,"","","","",null,""]
[876,null,null,null,null,"","","","",null,""]
[877,null,null,null,null,"","","","",null,""]
[878,null,null,null,null,"","","","",null,""]
[879,null,null,null,null,"","","","",null,""]
[880,null,null,null,null,"","","","",null,""]
[881,null,null,null,null,"","","","",null,""]
[882,null,null,null,null,"","","","",null,""]
[883,null,null,null,null,"","","","",null,""]
[884,null,null,null,null,"","","","",null,""]
[885,null,null,null,null,"","","","",null,""]
[886,null,null,null,null,"","","","",null,""]
[887,null,null,null,null,"","","","",null,""]
[888,null,null,null,null,"","","","",null,""]
[889,null,null,null,null,"","","","",null,""]
[890,null,null,null,null,"","","","",null,""]
[891,null,null,null,null,"","","","",null,""]
[892,null,null,null,null,"","","","",null,""]
[893,null,null,null,null,"","","","",null,""]
[894,null,null,null,null,"","","","",null,""]
[895,null,null,null,null,"","","","",null,""]
[896,null,null,null,null,"","","","",null,""]
[897,null,null,null,null,"","","","",null,""]
[898,null,null,null,null,{"$f":"IF(AND(E903>=D903,ISBLANK(D903)=FALSE,ISBLANK(E903)=FALSE),DATEDIF(D903,E903+1,\"y\"),\"\")","v":""},{"$f":"IF(AND(E903>=D903,ISBLANK(D903)=FALSE,ISBLANK(E903)=FALSE),DATEDIF(D903,E903+1,\"ym\"),\"\")","v":""},{"$f":"IF(AND(E903>=D903,ISBLANK(D903)=FALSE,ISBLANK(E903)=FALSE),DATEDIF(D903,E903+1,\"md\"),\"\")","v":""},{"$f":"IF(AND(ISBLANK(E903)=FALSE,ISBLANK(D903)=FALSE),IF(E903>TODAY(),IF(E903<D903,\"Неверный диапазон\",DATEDIF(TODAY(),E903,\"d\")),\"Контракт окончен\"),\"\")","v":""},null,{"$f":"IF(AND(I903>=33,I903<=35),\"Не забудьте уведомить\",IF(AND(I903>=31,I903<=32),\"Уведомьте работника\",\"\"))","v":""}]
[899,null,null,null,null,"","","","",null,""]
[900,null,null,null,null,"","","","",null,""]
[901,null,null,null,null,"","","","",null,""]
[902,null,null,null,null,"","","","",null,""]
[903,null,null,null,null,"","","","",null,""]
[904,null,null,null,null,"","","","",null,""]
[905,null,null,null,null,"","","","",null,""]
[906,null,null,null,null,"","","","",null,""]
[907,null,null,null,null,"","","","",null,""]
[908,null,null,null,null,"","","","",null,""]
[909,null,null,null,null,"","","","",null,""]
[910,null,null,null,null,"","","","",null,""]
[911,null,null,null,null,"","","","",null,""]
[912,null,null,null,null,"","","","",null,""]
[913,null,null,null,null,"","","","",null,""]
[914,null,null,null,null,"","","","",null,""]
[915,null,null,null,null,"","","","",null,""]
[916,null,null,null,null,"","","","",null,""]
[917,null,null,null,null,"","","","",null,""]
[918,null,null,null,null,"","","","",null,""]
[919,null,null,null,null,"","","","",null,""]
[920,null,null,null,null,"","","","",null,""]
[921,null,null,null,null,"","","","",null,""]
[922,null,null,null,null,"","","","",null,""]
[923,null,null,null,null,"","","","",null,""]
[924,null,null,null,null,"","","","",null,""]
[925,null,null,null,null,"","","","",null,""]
[926,null,null,null,null,"","","","",null,""]
[927,null,null,null,null,"","","","",null,""]
[928,null,null,null,null,"","","","",null,""]
[929,null,null,null,null,"","","","",null,""]
[930,null,null,null,null,"","","","",null,""]
[931,null,null,null,null,"","","","",null,""]
[932,null,null,null,null,"","","","",null,""]
[933,null,null,null,null,"","","","",null,""]
[934,null,null,null,null,"","","","",null,""]
[935,null,null,null,null,"","","","",null,""]
[936,null,null,null,null,"","","","",null,""]
[937,null,null,null,null,"","","","",null,""]
[938,null,null,null,null,"","","","",null,""]
[939,null,null,null,null,"","","","",null,""]
[940,null,null,null,null,"","","","",null,""]
[941,null,null,null,null,"","","","",null,""]
[942,null,null,null,null,"","","","",null,""]
[943,null,null,null,null,"","","","",null,""]
[944,null,null,null,null,"","","","",null,""]
[945,null,null,null,null,"","","","",null,""]
[946,null,null,null,null,"","","","",null,""]
[947,null,null,null,null,"","","","",null,""]
[948,null,null,null,null,"","","","",null,""]
[949,null,null,null,null,"","","","",null,""]
[950,null,null,null,null,"","","","",null,""]
[951,null,null,null,null,"","","","",null,""]
[952,null,null,null,null,"","","","",null,""]
[953,null,null,null,null,"","","","",null,""]
[954,null,null,null,null,"","","","",null,""]
[955,null,null,null,null,"","","","",null,""]
[956,null,null,null,null,"","","","",null,""]
[957,null,null,null,null,"","","","",null,""]
[958,null,null,null,null,"","","","",null,""]
[959,null,null,null,null,"","","","",null,""]
[960,null,null,null,null,"","","","",null,""]
[961,null,null,null,null,"","","","",null,""]
[962,null,null,null,null,{"$f":"IF(AND(E967>=D967,ISBLANK(D967)=FALSE,ISBLANK(E967)=FALSE),DATEDIF(D967,E967+1,\"y\"),\"\")","v":""},{"$f":"IF(AND(E967>=D967,ISBLANK(D967)=FALSE,ISBLANK(E967)=FALSE),DATEDIF(D967,E967+1,\"ym\"),\"\")","v":""},{"$f":"IF(AND(E967>=D967,ISBLANK(D967)=FALSE,ISBLANK(E967)=FALSE),DATEDIF(D967,E967+1,\"md\"),\"\")","v":""},{"$f":"IF(AND(ISBLANK(E967)=FALSE,ISBLANK(D967)=FALSE),IF(E967>TODAY(),IF(E967<D967,\"Неверный диапазон\",DATEDIF(TODAY(),E967,\"d\")),\"Контракт окончен\"),\"\")","v":""},null,{"$f":"IF(AND(I967>=33,I967<=35),\"Не забудьте уведомить\",IF(AND(I967>=31,I967<=32),\"Уведомьте работника\",\"\"))","v":""}]
[963,null,null,null,null,"","","","",null,""]
[964,null,null,null,null,"","","","",null,""]
[965,null,null,null,null,"","","","",null,""]
[966,null,null,null,null,"","","","",null,""]
[967,null,null,null,null,"","","","",null,""]
[968,null,null,null,null,"","","","",null,""]
[969,null,null,null,null,"","","","",null,""]
[970,null,null,null,null,"","","","",null,""]
[971,null,null,null,null,"","","","",null,""]
[972,null,null,null,null,"","","","",null,""]
[973,null,null,null,null,"","","","",null,""]
[974,null,null,null,null,"","","","",null,""]
[975,null,null,null,null,"","","","",null,""]
[976,null,null,null,null,"","","","",null,""]
[977,null,null,null,null,"","","","",null,""]
[978,null,null,null,null,"","","","",null,""]
[979,null,null,null,null,"","","","",null,""]
[980,null,null,null,null,"","","","",null,""]
[981,null,null,null,null,"","","","",null,""]
[982,null,null,null,null,"","","","",null,""]
[983,null,null,null,null,"","","","",null,""]
[984,null,null,null,null,"","","","",null,""]
[985,null,null,null,null,"","","","",null,""]
[986,null,null,null,null,"","","","",null,""]
[987,null,null,null,null,"","","","",null,""]
[988,null,null,null,null,"","","","",null,""]
[989,null,null,null,null,"","","","",null,""]
[990,null,null,null,null,"","","","",null,""]
[991,null,null,null,null,"","","","",null,""]
[992,null,null,null,null,"","","","",null,""]
[993,null,null,null,null,"","","","",null,""]
[994,null,null,null,null,"","","","",null,""]
[995,null,null,null,null,"","","","",null,""]
[996,null,null,null,null,"","","","",null,""]
[997,null,null,null,null,"","","","",null,""]
[998,null,null,null,null,"","","","",null,""]
[999,null,null,null,null,"","","","",null,""]
[1000,null,null,null,null,"","","","",null,""]

{"sheet":"Уведомление о продлении","index":2,"n_rows":35,"n_cols":8,"rows_kept":35,"cut":false,"hidden":false,"merged":[[33,7,34,9],[31,0,31,9],[0,0,0,9],[14,0,15,9],[2,6,2,9],[23,7,24,9],[26,7,27,9],[21,7,22,9]]}
["Проект уведомления о продлении контракта"]
[]
["Наименование организации",null,null,null,null,null,"Должность сотрудника"]
[null,null,null,null,null,null,"ФИО сотрудника"]
[]
[]
["УВЕДОМЛЕНИЕ"]
[]
["Дата","№"]
[]
["Населенный пункт"]
[]
["О продлении контракта"]
[]
["     Срок  действия  контракта  от _________ № _____, заключенного между ____________ ________________________________ и Вами, истекает _____________."]
[]
["     Предлагаем  Вам  продлить  контракт на ___ (______) _____ с _______ по_________."]
["     Просим  сообщить в письменной форме о Вашем согласии или несогласии на продление "]
["трудовых отношений на предложенных условиях."]
[]
[]
["Должность",null,null,null,"_________________",null,null,"ФИО руководителя"]
[]
["Уведомление получил лично",null,null,null,"_________________",null,null,"ФИО сотрудника"]
[null,null,null,null,"Дата"]
["С содержанием ознакомлен,"]
["суть уведомления мне понятна",null,null,null,"_________________",null,null,"ФИО сотрудника"]
[null,null,null,null,"Дата"]
[]
[]
["     Отношение  работника  к  предложению  продолжения  работы  и продления контракта"]
["(проставляется собственноручно работником):"]
[]
["Согласен/Не согласен",null,null,null,"_________________",null,null,"ФИО сотрудника"]
[null,null,null,null,"Дата"]

{"sheet":"Уведомление об увольнении","index":3,"n_rows":29,"n_cols":8,"rows_kept":29,"cut":false,"hidden":false,"merged":[[31,7,31,9],[0,0,0,9],[2,6,2,9],[17,0,18,9],[24,7,25,9],[27,7,28,9],[22,7,23,9]]}
["Проект уведомления об увольнении в связи с истечением срока действия контракта"]
[]
["Наименование организации",null,null,null,null,null,"Должность сотрудника"]
[null,null,null,null,null,null,"ФИО сотрудника"]
[]
[]
[]
["УВЕДОМЛЕНИЕ"]
[]
["Дата","№"]
[]
["Населенный пункт"]
[]
["Об увольнении в связи с истечением срока"]
["действия контракта"]
[]
[]
["     Уведомляем Вас, что в связи с истечением срока действия контракта от _________ № ___, заключенного на _____________________, Вы будете уволены _______ в соответствии с п. 2 ч. 2 ст. 35 Трудового кодекса Республики Беларусь."]
[]
[]
[]
[]
["Должность",null,null,null,"_________________",null,null,"ФИО руководителя"]
[]
["Уведомление получил лично",null,null,null,"_________________",null,null,"ФИО сотрудника"]
[null,null,null,null,"Дата"]
["С содержанием ознакомлен,"]
["суть уведомления мне понятна",null,null,null,"_________________",null,null,"ФИО сотрудника"]
[null,null,null,null,"Дата"]

{"sheet":"Правовое регулирование","index":4,"n_rows":25,"n_cols":1,"rows_kept":25,"cut":false,"hidden":false,"merged":[[23,0,23,8],[24,0,24,8],[19,0,19,8],[12,0,12,8],[13,0,13,8],[20,0,20,8],[21,0,21,8],[22,0,22,8],[14,0,14,8],[15,0,15,8],[16,0,16,8],[17,0,17,8],[18,0,18,8],[5,0,5,8],[6,0,6,8],[7,0,7,8],[8,0,8,8],[10,0,10,8],[0,0,0,8],[1,0,1,8],[2,0,2,8],[3,0,3,8],[4,0,4,8]]}
["Продление контракта"]
["При продлении контракта необходимо соблюдать максимальный срок действия контракта – пять лет (ч. 1 ст. 261-3 ТК)."]
["С работниками, не допускающими нарушений производственно-технологической, исполнительской и трудовой дисциплины, новый контракт по соглашению сторон заключается на срок не менее трех лет. На меньший срок – только с письменного согласия работника. При этом такой срок не может быть менее одного года (ч. 4 ст. 261-3 ТК). "]
["Кроме того, наниматель с письменного согласия работника, не допускающего нарушений производственно-технологической, исполнительской и трудовой дисциплины, проработавшего у данного нанимателя не менее пяти лет, по истечении срока действия контракта вправе заключить с работником трудовой договор на неопределенный срок (ч. 1 ст. 261-4 ТК)."]
[]
["Важно: наниматель с согласия работника обязан продлить срок действия контракта либо заключить новый контракт с: "]
["1) работающей женщиной, находящейся в отпуске по беременности и родам, матерью (отцом ребенка вместо матери, опекуном), находящейся в отпуске по уходу за ребенком до достижения им возраста трех лет, – на срок не менее чем до окончания указанных отпусков;"]
["2) работающей матерью (отцом ребенка вместо матери, опекуном), приступившей к работе до или после окончания отпуска по уходу за ребенком до достижения им возраста трех лет, – на срок не менее чем до достижения ребенком возраста пяти лет;"]
["3) работником, добросовестно работающим и не допускающим нарушений производственно-технологической, исполнительской и трудовой дисциплины, которому до достижения общеустановленного пенсионного возраста остается не более двух лет, – не менее чем до достижения указанного возраста."]
[]
["Окончание срока действия контракта: правовое регулирование"]
[]
["Частями 1, 2 ст. 261-3 ТК предусмотрено, что контракт заключается на срок не менее одного года и не более пяти лет (максимальный срок действия контракта). Конкретный срок действия контракта определяется по соглашению сторон."]
["Каждая из сторон, заключивших контракт, не позднее чем за один месяц до истечения срока его действия письменно предупреждает другую сторону о решении продолжить или прекратить трудовые отношения."]
["Важно: в контракте, коллективном договоре или другом локальном правовом акте может быть предусмотрен более продолжительный срок для предупреждения работника, который наниматель обязан соблюдать (ч. 1 п. 12  постановление Пленума Верховного Суда Республики Беларусь от 26.06.2008 № 4 \"О практике рассмотрения судами трудовых споров, связанных с контрактной формой найма работников” (далее – постановление Пленума № 4))."]
["Если по истечении срока действия контракта трудовые отношения фактически продолжаются и ни одна из сторон не потребовала их прекращения, то считается, что трудовые отношения продолжаются на условиях трудового договора, заключенного на неопределенный срок. При этом такой договор начинает действовать со дня, следующего за днем истечения срока действия контракта (ч. 2 ст. 261-4 ТК)."]
[]
["Увольнение в связи с истечением срока действия контракта"]
["Если работник не согласен на продление трудовых отношений на новых условиях, предложенных нанимателем, то последний вправе прекратить контракт с работником в связи с истечением его срока действия в соответствии с п. 2 ч. 2 ст. 35 ТК (ч. 2 п. 13  постановления Пленума  № 4 )."]
[]
["Важно: контракт прекращается в последний день его действия независимо от того, на какой день (рабочий или выходной) приходится его окончание. Увольнение работника по данному основанию допускается в период временной нетрудоспособности либо пребывания в отпуске."]
["  "]
["Ответственность за несвоевременное уведомление"]
["Если наниматель не предупредит работника о решении продолжить трудовые отношения не позднее чем за один месяц до истечения срока действия контракта, то он может быть привлечен к административной ответственности за нарушение законодательства о труде (ч. 6 ст. 10.12 КоАП)."]
["Если работник не выполнит обязанность по предупреждению нанимателя о продолжении трудовых отношений в указанный срок, то наниматель будет вправе привлечь такого работника к дисциплинарной ответственности (например, объявить ему замечание) за неисполнение трудовой обязанности, возложенной на работника законодательством и контрактом (ст. 197, 198 ТК)."]

{"sheet":"Данные об организации","index":5,"n_rows":4,"n_cols":1,"rows_kept":4,"cut":false,"hidden":false,"merged":[]}
["Наименование"]
["ФИО руководителя"]
["Наименование должности"]
["Населенный пункт"]

{"sheet":"Список должностей","index":6,"n_rows":79,"n_cols":1,"rows_kept":79,"cut":false,"hidden":false,"merged":[]}
["Должности"]
["Библиотекарь"]
["Бухгалтер"]
["Водитель"]
["Воспитатель"]
["Воспитатель дошкольного образования"]
["Воспитатель-методист, воспитатель"]
["Врач"]
["Врач-педиатр"]
["Гардеробщик"]
["Главный бухгалтер"]
["Дворник"]
["Делопроизводитель"]
["Директор"]
["Заведующий библиотекой"]
["Заведующий дошкольным учреждением"]
["Заведующий общежитием"]
["Заведующий столовой"]
["Заведующий учебно-консультационным пунктом"]
["Заведующий филиалом"]
["Заведующий хозяйством"]
["Заместитель директора по воспитательной работе"]
["Заместитель директора по основной деятельности"]
["Заместитель директора по учебно-воспитательной работе"]
["Заместитель директора по учебной работе"]
["Заместитель директора по учебно-методической работе"]
["Заместитель директора по учебно-производственному обучению"]
["Заместитель директора по хозяйственной работе"]
["Заместитель заведующего по основной деятельности"]
["Заместитель заведующего по хозяйственной работе"]
["Инженер"]
["Инженер-программист"]
["Инспектор по кадрам"]
["Инструктор лечебной физкультуры"]
["Инструктор по физической культуре"]
["Истопник"]
["Кастелянша"]
["Кладовщик"]
["Кухонный рабочий"]
["Лаборант"]
["Лифтер"]
["Мастер производственного обучения учреждения образования"]
["Медицинская сестра"]
["Методист"]
["Музыкальный руководитель"]
["Обувщик"]
["Оператор хлораторной установки (аппаратчик химводоочистки)"]
["Оператор электронно-вычислительных машин"]
["Парикмахер"]
["Педагог дополнительного образования"]
["Педагог социальный"]
["Педагог-организатор"]
["Педагог-психолог"]
["Повар"]
["Повар детского питания (повар)"]
["Помощник воспитателя"]
["Рабочий по обслуживанию и текущему ремонту зданий"]
["Рабочий по стирке и ремонту спецодежды"]
["Рабочий по комплексному обслуживанию и ремонту зданий и сооружений"]
["Рабочий по обслуживанию и ремонту инженерного оборудования"]
["Рабочий по обслуживанию котельных и тепловых сетей"]
["Рабочий по стирке и ремонту спецодежды"]
["Руководитель по военно-патриотическому воспитанию"]
["Руководитель физического воспитания"]
["Садовник"]
["Санитарка"]
["Секретарь"]
["Секретарь учебной части"]
["Слесарь по контрольно-измерительным приборам и автоматике"]
["Слесарь-сантехник"]
["Старшая медицинская сестра"]
["Столяр"]
["Сторож (вахтер)"]
["Уборщик служебных помещений"]
["Уборщик территорий"]
["Учитель-дефектолог"]
["Швея"]
["Шеф-повар"]
["Электромонтер по ремонту и обслуживанию электрооборудования"]